fUST/lending_fUST_20250626
["ID","MTS","AMOUNT","RATE_DAILY","PERIOD"]
[367837126,1750941053853,-460.0,0.0001726,2]
[367837127,1750941053862,-460.0,0.0001726,2]
[367837128,1750941053871,-508.90429051,0.0001726,2]
[367837129,1750941053880,-460.0,0.0001726,2]
[367837130,1750941053891,-460.0,0.0001726,2]
[367837131,1750941053901,-803.0,0.0001726,2]
[367837132,1750941053911,-460.0,0.0001726,2]
[367837133,1750941053920,-460.0,0.0001726,2]
[367837134,1750941053930,-460.0,0.0001726,2]
[367837135,1750941053940,-566.19,0.0001726,2]
[367837136,1750941053950,-460.0,0.0001726,2]
[367837137,1750941053959,-460.0,0.0001726,2]
[367837138,1750941053969,-460.0,0.0001726,2]
[367837139,1750941053978,-460.0,0.0001726,2]
[367837140,1750941053987,-531.21,0.0001726,2]
[367837141,1750941053996,-460.0,0.0001726,2]
[367837142,1750941054006,-586.58,0.0001726,2]
[367837143,1750941054016,-460.0,0.0001726,2]
[367837144,1750941054025,-460.0,0.0001726,2]
[367837145,1750941054035,-460.0,0.0001726,2]
[367837146,1750941054044,-460.0,0.0001726,2]
[367837147,1750941054054,-460.0,0.0001726,2]
[367837148,1750941054063,-460.0,0.0001726,2]
[367837149,1750941054072,-460.0,0.0001726,2]
[367837150,1750941054081,-460.0,0.0001726,2]
[367837151,1750941054090,-1446.03,0.0001726,2]
[367837152,1750941054099,-1888.57,0.0001726,2]
[367837153,1750941054108,-460.0,0.0001726,2]
[367837154,1750941054118,-460.0,0.0001726,2]
[367837155,1750941054127,-460.0,0.0001726,2]
[367837156,1750941054136,-2010.83,0.0001726,2]
[367837157,1750941054145,-460.0,0.0001726,2]
[367837158,1750941054155,-460.0,0.0001726,2]
[367837159,1750941054165,-460.0,0.0001726,2]
[367837160,1750941054174,-460.0,0.0001726,2]
[367837161,1750941054184,-706.02,0.0001726,2]
[367837162,1750941054195,-460.0,0.0001726,2]
[367837163,1750941054204,-460.0,0.0001726,2]
[367837164,1750941054214,-460.0,0.0001726,2]
[367837165,1750941054223,-947.82,0.0001726,2]
[367837166,1750941054233,-460.0,0.0001726,2]
[367837167,1750941054245,-460.0,0.0001726,2]
[367837168,1750941054254,-686.64,0.0001726,2]
[367837169,1750941054264,-528.25,0.0001726,2]
[367837170,1750941054275,-460.0,0.0001726,2]
[367837171,1750941054285,-317.0281153,0.0001726,2]
[367837172,1750941054295,-460.0,0.0001726,2]
[367837173,1750941054304,-460.0,0.0001726,2]
[367837174,1750941054314,-460.0,0.0001726,2]
[367837175,1750941054324,-630.9,0.0001726,2]
[367837176,1750941054334,-4731.44,0.0001726,2]
[367837177,1750941054343,-464.51,0.0001726,2]
[367837178,1750941054353,-719.52,0.0001726,2]
[367837179,1750941054362,-460.0,0.0001726,2]
[367837180,1750941054371,-806.15,0.0001726,2]
[367837181,1750941054382,-460.0,0.0001726,2]
[367837182,1750941054393,-460.0,0.0001726,2]
[367837183,1750941054402,-548.98,0.0001726,2]
[367837184,1750941054413,-460.0,0.0001726,2]
[367837185,1750941054422,-460.0,0.0001726,2]
[367837186,1750941054431,-460.0,0.0001726,2]
[367837187,1750941054440,-460.0,0.0001726,2]
[367837188,1750941054451,-460.0,0.0001726,2]
[367837189,1750941054461,-460.0,0.0001726,2]
[367837190,1750941054470,-5800.83,0.0001726,2]
[367837191,1750941054480,-692.44,0.0001726,2]
[367837192,1750941054489,-866.92,0.0001726,2]
[367837193,1750941054499,-460.0,0.0001726,2]
[367837194,1750941054509,-460.0,0.0001726,2]
[367837195,1750941054520,-2909.6,0.0001726,2]
[367837196,1750941054530,-517.95,0.0001726,2]
[367837197,1750941054539,-2686.11,0.0001726,2]
[367837198,1750941054549,-460.0,0.0001726,2]
[367837199,1750941054559,-1046.42,0.0001726,2]
[367837200,1750941054568,-1363.41,0.0001726,2]
[367837201,1750941054578,-3716.07,0.0001726,2]
[367837202,1750941054588,-532.34,0.0001726,2]
[367837203,1750941054598,-790.12,0.0001726,2]
[367837204,1750941054609,-1720.1,0.0001726,2]
[367837205,1750941054620,-607.72,0.0001726,2]
[367837206,1750941054633,-460.0,0.0001726,2]
[367837207,1750941054643,-500.0,0.0001726,2]
[367837208,1750941054652,-738.59,0.0001726,2]
[367837209,1750941054662,-683.98,0.0001726,2]
[367837210,1750941054672,-460.0,0.0001726,2]
[367837211,1750941054682,-460.0,0.0001726,2]
[367837212,1750941054694,-460.0,0.0001726,2]
[367837213,1750941054704,-460.0,0.0001726,2]
[367837214,1750941054714,-460.0,0.0001726,2]
[367837215,1750941054723,-533.75,0.0001726,2]
[367837216,1750941054732,-1868.49,0.0001726,2]
[367837217,1750941054742,-1752.99,0.0001726,2]
[367837218,1750941054752,-444.55028949,0.0001726,2]
[367837219,1750941054760,-460.0,0.0001726,2]
[367837220,1750941054771,-460.0,0.0001726,2]
[367837221,1750941054780,-761.74,0.0001726,2]
[367837222,1750941054789,-620.54,0.0001726,2]
[367837223,1750941054798,-460.0,0.0001726,2]
[367837224,1750941054807,-227.1547227,0.0001726,2]
[367837225,1750941054816,-570.25,0.0001726,2]
[367837226,1750941054826,-460.0,0.0001726,2]
[367837227,1750941054835,-460.0,0.0001726,2]
[367837228,1750941054844,-460.0,0.0001726,2]
[367837229,1750941054854,-387.03065936,0.0001726,2]
[367837230,1750941054863,-460.0,0.0001726,2]
[367837231,1750941054872,-1048.74,0.0001726,2]
[367837232,1750941054882,-460.0,0.0001726,2]
[367837233,1750941054891,-890.8,0.0001726,2]
[367837234,1750941054900,-2024.11,0.0001726,2]
[367837235,1750941054910,-460.0,0.0001726,2]
[367837236,1750941054919,-641.16,0.0001726,2]
[367837237,1750941054929,-460.0,0.0001726,2]
[367837238,1750941054939,-753.25,0.0001726,2]
[367837239,1750941054950,-560.58,0.0001726,2]
[367837240,1750941054959,-1034.46,0.0001726,2]
[367837241,1750941054969,-510.97,0.0001726,2]
[367837242,1750941054978,-685.54,0.0001726,2]
[367837243,1750941054988,-593.48428246,0.0001726,2]
[367837244,1750941054997,-594.59,0.0001726,2]
[367837245,1750941055007,-501.72,0.0001726,2]
[367837246,1750941055016,-743.6,0.0001726,2]
[367837247,1750941055025,-460.0,0.0001726,2]
[367837248,1750941055035,-2173.59,0.0001726,2]
[367837249,1750941055044,-2150.76,0.0001726,2]
[367837250,1750941055053,-603.43,0.0001726,2]
[367837251,1750941055063,-579.36403245,0.0001726,2]
[367837252,1750941055072,-460.0,0.0001726,2]
[367837253,1750941055081,-460.0,0.0001726,2]
[367837254,1750941055090,-460.0,0.0001726,2]
[367837255,1750941055099,-460.0,0.0001726,2]
[367837256,1750941055108,-211.57912071,0.0001726,2]
[367837257,1750941055118,-594.3,0.0001726,2]
[367837258,1750941055128,-1345.47,0.0001726,2]
[367837259,1750941055138,-721.39,0.0001726,2]
[367837260,1750941055147,-460.0,0.0001726,2]
[367837261,1750941055156,-460.0,0.0001726,2]
[367837262,1750941055166,-1390.16,0.0001726,2]
[367837263,1750941055175,-885.25,0.0001726,2]
[367837264,1750941055185,-460.0,0.0001726,2]
[367837265,1750941055233,-460.0,0.0001726,2]
[367837266,1750941055243,-460.0,0.0001726,2]
[367837267,1750941055252,-460.0,0.0001726,2]
[367837268,1750941055262,-460.0,0.0001726,2]
[367837269,1750941055271,-460.0,0.0001726,2]
[367837270,1750941055281,-460.0,0.0001726,2]
[367837271,1750941055291,-460.0,0.0001726,2]
[367837272,1750941055301,-460.0,0.0001726,2]
[367837273,1750941055311,-2659.29,0.0001726,2]
[367837274,1750941055320,-460.0,0.0001726,2]
[367837275,1750941055330,-460.0,0.0001726,2]
[367837276,1750941055340,-150.29223168,0.0001726,2]
[367837277,1750941055352,-460.0,0.0001726,2]
[367837278,1750941055361,-2051.31,0.0001726,2]
[367837279,1750941055371,-581.91,0.0001726,2]
[367837280,1750941055381,-460.0,0.0001726,2]
[367837281,1750941055391,-479.83,0.0001726,2]
[367837282,1750941055400,-460.0,0.0001726,2]
[367837283,1750941055409,-569.65,0.0001726,2]
[367837284,1750941055419,-460.0,0.0001726,2]
[367837285,1750941055428,-460.0,0.0001726,2]
[367837286,1750941055437,-11153.31322064,0.00017337,2]
[367837287,1750941055448,-3504.06932379,0.00017364,2]
[367837288,1750941055458,-151.0,0.000174,2]
[367837289,1750941055467,-151.0,0.000174,2]
[367837290,1750941055476,-151.0,0.00017424,2]
[367837291,1750941055486,-151.0,0.00017424,2]
[367837292,1750941055495,-201.65179822,0.00017424,2]
[367837293,1750941055504,-151.0,0.00017424,2]
[367837294,1750941055513,-151.0,0.00017424,2]
[367837295,1750941055523,-152.6351556,0.00017424,2]
[367837296,1750941055532,-151.8099724,0.00017424,2]
[367837297,1750941055541,-151.0,0.00017424,2]
[367837298,1750941055550,-151.0,0.00017424,2]
[367837299,1750941055559,-155.87488093,0.00017451,2]
[367837300,1750941055568,-151.0,0.00017451,2]
[367837301,1750941055578,-151.0,0.00017451,2]
[367837302,1750941055587,-151.0,0.00017451,2]
[367837303,1750941055596,-213.51501345,0.00017451,2]
[367837304,1750941055605,-151.29765514,0.00017451,2]
[367837305,1750941055614,-2764.78833449,0.00017452,2]
[367837306,1750941055623,-166.07256633,0.00017479,2]
[367837307,1750941055638,-151.0,0.00017479,2]
[367837308,1750941055647,-3000.0,0.000175,2]
[367837309,1750941055656,-151.0,0.000175,2]
[367837310,1750941055668,-247.54744974,0.00017506,2]
[367837311,1750941055678,-500.0,0.00017533,2]
[367837312,1750941055687,-500.0,0.00017533,2]
[367837313,1750941055698,-399.66928241,0.00017533,2]
[367837314,1750941055707,-500.0,0.00017533,2]
[367837315,1750941055717,-531.63466191,0.00017533,2]
[367837316,1750941055727,-500.0,0.00017533,2]
[367837317,1750941055736,-500.0,0.00017533,2]
[367837318,1750941055745,-500.0,0.00017533,2]
[367837319,1750941055754,-460.0,0.00017534,2]
[367837320,1750941055763,-460.0,0.00017534,2]
[367837321,1750941055773,-460.0,0.00017534,2]
[367837322,1750941055782,-460.0,0.00017534,2]
[367837323,1750941055791,-460.0,0.00017534,2]
[367837324,1750941055800,-211.91409366,0.00017534,2]
[367837325,1750941055809,-460.0,0.00017534,2]
[367837326,1750941055818,-460.0,0.00017534,2]
[367837327,1750941055827,-460.0,0.00017534,2]
[367837328,1750941055837,-460.0,0.00017534,2]
[367837329,1750941055846,-460.0,0.00017534,2]
[367837330,1750941055855,-460.0,0.00017534,2]
[367837331,1750941055864,-440.0,0.00017534,2]
[367837332,1750941055873,-460.0,0.00017534,2]
[367837333,1750941055882,-460.0,0.00017534,2]
[367837334,1750941055891,-460.0,0.00017534,2]
[367837335,1750941055900,-460.0,0.00017534,2]
[367837336,1750941055910,-430.0,0.00017534,2]
[367837337,1750941055919,-460.0,0.00017534,2]
[367837338,1750941055928,-460.0,0.00017534,2]
[367837339,1750941055937,-460.0,0.00017534,2]
[367837340,1750941055947,-460.0,0.00017534,2]
[367837341,1750941055956,-460.0,0.00017534,2]
[367837342,1750941055965,-460.0,0.00017534,2]
[367837343,1750941055974,-460.0,0.00017534,2]
[367837344,1750941055983,-473.28,0.00017534,2]
[367837345,1750941055992,-460.0,0.00017534,2]
[367837346,1750941056001,-460.0,0.00017534,2]
[367837347,1750941056010,-460.0,0.00017534,2]
[367837348,1750941056019,-460.0,0.00017534,2]
[367837349,1750941056027,-888.46,0.00017534,2]
[367837350,1750941056036,-791.24,0.00017534,2]
[367837351,1750941056045,-460.0,0.00017534,2]
[367837352,1750941056054,-460.0,0.00017534,2]
[367837353,1750941056063,-460.0,0.00017534,2]
[367837354,1750941056072,-807.51,0.00017534,2]
[367837355,1750941056081,-460.0,0.00017534,2]
[367837356,1750941056090,-460.0,0.00017534,2]
[367837357,1750941056098,-430.46000001,0.00017534,2]
[367837358,1750941056108,-460.0,0.00017534,2]
[367837359,1750941056118,-460.0,0.00017534,2]
[367837360,1750941056127,-503.24,0.00017534,2]
[367837361,1750941056136,-460.0,0.00017534,2]
[367837362,1750941056145,-568.84709465,0.00017534,2]
[367837363,1750941056155,-278.34613838,0.00017534,2]
[367837364,1750941056164,-631.7,0.00017534,2]
[367837365,1750941056174,-460.0,0.00017534,2]
[367837366,1750941056183,-460.0,0.00017534,2]
[367837367,1750941056193,-460.0,0.00017534,2]
[367837368,1750941056204,-742.62,0.00017534,2]
[367837369,1750941056213,-522.87833624,0.00017534,2]
[367837370,1750941056222,-603.5267931,0.00017534,2]
[367837371,1750941056231,-460.0,0.00017534,2]
[367837372,1750941056240,-460.0,0.00017534,2]
[367837373,1750941056250,-460.0,0.00017534,2]
[367837374,1750941056260,-460.0,0.00017534,2]
[367837375,1750941056270,-460.0,0.00017534,2]
[367837376,1750941056280,-460.0,0.00017534,2]
[367837377,1750941056289,-460.0,0.00017534,2]
[367837378,1750941056298,-460.0,0.00017534,2]
[367837379,1750941056308,-471.26,0.00017534,2]
[367837380,1750941056318,-486.33807008,0.00017534,2]
[367837381,1750941056327,-460.0,0.00017534,2]
[367837382,1750941056336,-460.0,0.00017534,2]
[367837383,1750941056345,-460.0,0.00017534,2]
[367837384,1750941056354,-460.0,0.00017534,2]
[367837385,1750941056364,-460.0,0.00017534,2]
[367837386,1750941056373,-460.0,0.00017534,2]
[367837387,1750941056382,-332.94815065,0.00017534,2]
[367837388,1750941056391,-460.0,0.00017534,2]
[367837389,1750941056401,-460.0,0.00017534,2]
[367837390,1750941056410,-460.0,0.00017534,2]
[367837391,1750941056419,-803.0,0.00017534,2]
[367837392,1750941056428,-460.0,0.00017534,2]
[367837393,1750941056437,-460.0,0.00017534,2]
[367837394,1750941056450,-460.0,0.00017534,2]
[367837395,1750941056459,-566.19,0.00017534,2]
[367837396,1750941056468,-460.0,0.00017534,2]
[367837397,1750941056478,-460.0,0.00017534,2]
[367837398,1750941056487,-460.0,0.00017534,2]
[367837399,1750941056497,-531.21,0.00017534,2]
[367837400,1750941056506,-460.0,0.00017534,2]
[367837401,1750941056516,-586.58,0.00017534,2]
[367837402,1750941056525,-460.0,0.00017534,2]
[367837403,1750941056535,-460.0,0.00017534,2]
[367837404,1750941056544,-460.0,0.00017534,2]
[367837405,1750941056553,-460.0,0.00017534,2]
[367837406,1750941056562,-460.0,0.00017534,2]
[367837407,1750941056571,-460.0,0.00017534,2]
[367837408,1750941056580,-460.0,0.00017534,2]
[367837409,1750941056589,-460.0,0.00017534,2]
[367837410,1750941056599,-1446.03,0.00017534,2]
[367837411,1750941056608,-1888.57,0.00017534,2]
[367837412,1750941056618,-460.0,0.00017534,2]
[367837413,1750941056628,-460.0,0.00017534,2]
[367837414,1750941056639,-460.0,0.00017534,2]
[367837415,1750941056649,-2010.83,0.00017534,2]
[367837416,1750941056658,-460.0,0.00017534,2]
[367837417,1750941056668,-460.0,0.00017534,2]
[367837418,1750941056677,-460.0,0.00017534,2]
[367837419,1750941056686,-460.0,0.00017534,2]
[367837420,1750941056695,-706.02,0.00017534,2]
[367837421,1750941056705,-460.0,0.00017534,2]
[367837422,1750941056715,-460.0,0.00017534,2]
[367837423,1750941056724,-460.0,0.00017534,2]
[367837424,1750941056734,-947.82,0.00017534,2]
[367837425,1750941056744,-460.0,0.00017534,2]
[367837426,1750941056754,-686.64,0.00017534,2]
[367837427,1750941056763,-528.25,0.00017534,2]
[367837428,1750941056773,-460.0,0.00017534,2]
[367837429,1750941056782,-460.0,0.00017534,2]
[367837430,1750941056791,-460.0,0.00017534,2]
[367837431,1750941056801,-460.0,0.00017534,2]
[367837432,1750941056810,-630.9,0.00017534,2]
[367837433,1750941056819,-4731.44,0.00017534,2]
[367837434,1750941056828,-464.51,0.00017534,2]
[367837435,1750941056838,-719.52,0.00017534,2]
[367837436,1750941056847,-460.0,0.00017534,2]
[367837437,1750941056858,-806.15,0.00017534,2]
[367837438,1750941056867,-460.0,0.00017534,2]
[367837439,1750941056876,-460.0,0.00017534,2]
[367837440,1750941056886,-548.98,0.00017534,2]
[367837441,1750941056895,-460.0,0.00017534,2]
[367837442,1750941056904,-460.0,0.00017534,2]
[367837443,1750941056914,-460.0,0.00017534,2]
[367837444,1750941056924,-500.0,0.00017534,2]
[367837445,1750941056935,-460.0,0.00017534,2]
[367837446,1750941056948,-460.0,0.00017534,2]
[367837447,1750941056957,-5800.83,0.00017534,2]
[367837448,1750941056967,-692.44,0.00017534,2]
[367837449,1750941056976,-866.92,0.00017534,2]
[367837450,1750941056985,-460.0,0.00017534,2]
[367837451,1750941056995,-460.0,0.00017534,2]
[367837452,1750941057004,-2909.6,0.00017534,2]
[367837453,1750941057014,-517.95,0.00017534,2]
[367837454,1750941057023,-2686.11,0.00017534,2]
[367837455,1750941057032,-598.48623069,0.00017534,2]
[367837456,1750941057042,-1363.41,0.00017534,2]
[367837457,1750941057051,-3716.07,0.00017534,2]
[367837458,1750941057061,-1046.42,0.00017534,2]
[367837459,1750941057070,-532.34,0.00017534,2]
[367837460,1750941057080,-790.12,0.00017534,2]
[367837461,1750941057089,-1720.1,0.00017534,2]
[367837462,1750941057099,-607.72,0.00017534,2]
[367837463,1750941057108,-460.0,0.00017534,2]
[367837464,1750941057118,-738.59,0.00017534,2]
[367837465,1750941057127,-683.98,0.00017534,2]
[367837466,1750941057136,-460.0,0.00017534,2]
[367837467,1750941057146,-460.0,0.00017534,2]
[367837468,1750941057155,-460.0,0.00017534,2]
[367837469,1750941057165,-413.12,0.00017534,2]
[367837470,1750941057174,-460.0,0.00017534,2]
[367837471,1750941057184,-533.75,0.00017534,2]
[367837472,1750941057193,-1868.49,0.00017534,2]
[367837473,1750941057205,-1752.99,0.00017534,2]
[367837474,1750941057215,-460.0,0.00017534,2]
[367837475,1750941057224,-460.0,0.00017534,2]
[367837476,1750941057233,-761.74,0.00017534,2]
[367837477,1750941057243,-620.54,0.00017534,2]
[367837478,1750941057252,-460.0,0.00017534,2]
[367837479,1750941057262,-570.25,0.00017534,2]
[367837480,1750941057271,-460.0,0.00017534,2]
[367837481,1750941057281,-460.0,0.00017534,2]
[367837482,1750941057291,-460.0,0.00017534,2]
[367837483,1750941057301,-460.0,0.00017534,2]
[367837484,1750941057311,-1048.74,0.00017534,2]
[367837485,1750941057321,-460.0,0.00017534,2]
[367837486,1750941057331,-890.8,0.00017534,2]
[367837487,1750941057340,-2024.11,0.00017534,2]
[367837488,1750941057350,-460.0,0.00017534,2]
[367837489,1750941057360,-641.16,0.00017534,2]
[367837490,1750941057371,-460.0,0.00017534,2]
[367837491,1750941057381,-753.25,0.00017534,2]
[367837492,1750941057390,-560.58,0.00017534,2]
[367837493,1750941057400,-1034.46,0.00017534,2]
[367837494,1750941057409,-510.97,0.00017534,2]
[367837495,1750941057419,-685.54,0.00017534,2]
[367837496,1750941057428,-594.59,0.00017534,2]
[367837497,1750941057438,-501.72,0.00017534,2]
[367837498,1750941057449,-743.6,0.00017534,2]
[367837499,1750941057458,-236.02928671,0.00017534,2]
[367837500,1750941057468,-2173.59,0.00017534,2]
[367837501,1750941057477,-2150.76,0.00017534,2]
[367837502,1750941057487,-603.43,0.00017534,2]
[367837503,1750941057496,-460.0,0.00017534,2]
[367837504,1750941057505,-460.0,0.00017534,2]
[367837505,1750941057515,-460.0,0.00017534,2]
[367837506,1750941057525,-460.0,0.00017534,2]
[367837507,1750941057535,-594.3,0.00017534,2]
[367837508,1750941057544,-1345.47,0.00017534,2]
[367837509,1750941057555,-721.39,0.00017534,2]
[367837510,1750941057564,-460.0,0.00017534,2]
[367837511,1750941057574,-460.0,0.00017534,2]
[367837512,1750941057584,-1390.16,0.00017534,2]
[367837513,1750941057594,-885.25,0.00017534,2]
[367837514,1750941057603,-460.0,0.00017534,2]
[367837515,1750941057612,-460.0,0.00017534,2]
[367837516,1750941057623,-460.0,0.00017534,2]
[367837517,1750941057635,-460.0,0.00017534,2]
[367837518,1750941057644,-460.0,0.00017534,2]
[367837519,1750941057654,-460.0,0.00017534,2]
[367837520,1750941057664,-460.0,0.00017534,2]
[367837521,1750941057673,-460.0,0.00017534,2]
[367837522,1750941057683,-460.0,0.00017534,2]
[367837523,1750941057692,-2659.29,0.00017534,2]
[367837524,1750941057705,-460.0,0.00017534,2]
[367837525,1750941057714,-460.0,0.00017534,2]
[367837526,1750941057724,-522.75,0.00017534,2]
[367837527,1750941057733,-2051.31,0.00017534,2]
[367837528,1750941057743,-581.91,0.00017534,2]
[367837529,1750941057754,-460.0,0.00017534,2]
[367837530,1750941057763,-479.83,0.00017534,2]
[367837531,1750941057772,-460.0,0.00017534,2]
[367837532,1750941057782,-569.65,0.00017534,2]
[367837533,1750941057791,-460.0,0.00017534,2]
[367837534,1750941057800,-434.93440912,0.00017534,2]
[367837535,1750941057810,-500.0,0.00017573,2]
[367837536,1750941057820,-500.0,0.00017573,2]
[367837537,1750941057829,-500.0,0.00017573,2]
[367837538,1750941057839,-500.0,0.00017573,2]
[367837539,1750941057849,-501.20861726,0.00017573,2]
[367837540,1750941057859,-166.22610356,0.00017573,2]
[367837541,1750941057869,-500.41457115,0.00017573,2]
[367837542,1750941057878,-179.84230171,0.00017573,2]
[367837543,1750941057888,-500.0,0.00017573,2]
[367837544,1750941057898,-500.0,0.00017573,2]
[367837545,1750941057907,-500.0,0.00017573,2]
[367837546,1750941057917,-500.0,0.00017573,2]
[367837547,1750941057927,-500.08046788,0.00017573,2]
[367837548,1750941057937,-518.58148547,0.00017573,2]
[367837549,1750941057948,-500.30344921,0.00017573,2]
[367837550,1750941057957,-500.19571875,0.00017573,2]
[367837551,1750941057967,-500.84850324,0.00017573,2]
[367837552,1750941057976,-500.0,0.00017573,2]
[367837553,1750941057986,-500.0,0.00017573,2]
[367837554,1750941057996,-425.23766605,0.00017573,2]
[367837555,1750941058006,-500.0,0.00017587,2]
[367837556,1750941058016,-500.0,0.00017587,2]
[367837557,1750941058026,-500.41164183,0.00017587,2]
[367837558,1750941058035,-500.0,0.00017591,2]
[367837559,1750941058045,-500.0,0.00017623,2]
[367837560,1750941058054,-500.0,0.00017633,2]
[367837561,1750941058064,-440.61238396,0.00017633,2]
[367837562,1750941058073,-583.91756294,0.00017662,2]
[367837563,1750941058083,-151.0,0.000177,2]
[367837564,1750941058092,-3504.06932379,0.00017706,2]
[367837565,1750941058102,-2764.78833449,0.00017728,2]
[367837566,1750941058111,-501.20939308,0.00017752,2]
[367837567,1750941058120,-500.0,0.00017752,2]
[367837568,1750941058130,-500.92098128,0.00017752,2]
[367837569,1750941058139,-500.0,0.00017752,2]
[367837570,1750941058149,-500.0,0.00017752,2]
[367837571,1750941058159,-500.0,0.00017752,2]
[367837572,1750941058169,-500.0,0.00017752,2]
[367837573,1750941058179,-420.0,0.00017763,2]
[367837574,1750941058189,-2658.6,0.00017798,3]
[367837575,1750941058200,-1329.3,0.00017798,3]
[367837576,1750941058209,-664.64,0.00017798,3]
[367837577,1750941058218,-332.32,0.00017798,3]
[367837578,1750941058228,-332.32,0.00017798,3]
[367837579,1750941058237,-460.0,0.00017808,2]
[367837580,1750941058247,-460.0,0.00017808,2]
[367837581,1750941058257,-460.0,0.00017808,2]
[367837582,1750941058266,-410.87111296,0.00017808,2]
[367837583,1750941058276,-460.0,0.00017808,2]
[367837584,1750941058286,-500.0,0.00017808,2]
[367837585,1750941058295,-460.0,0.00017808,2]
[367837586,1750941058305,-557.34038684,0.00017808,2]
[367837587,1750941058315,-518.02358399,0.00017808,2]
[367837588,1750941058325,-460.0,0.00017808,2]
[367837589,1750941058335,-460.0,0.00017808,2]
[367837590,1750941058345,-460.0,0.00017808,2]
[367837591,1750941058355,-460.0,0.00017808,2]
[367837592,1750941058365,-580.15650377,0.00017808,2]
[367837593,1750941058374,-371.71405561,0.00017808,2]
[367837594,1750941058384,-460.0,0.00017808,2]
[367837595,1750941058393,-460.0,0.00017808,2]
[367837596,1750941058403,-460.0,0.00017808,2]
[367837597,1750941058413,-460.0,0.00017808,2]
[367837598,1750941058423,-460.0,0.00017808,2]
[367837599,1750941058432,-460.0,0.00017808,2]
[367837600,1750941058441,-473.28,0.00017808,2]
[367837601,1750941058453,-460.0,0.00017808,2]
[367837602,1750941058462,-460.0,0.00017808,2]
[367837603,1750941058472,-460.0,0.00017808,2]
[367837604,1750941058481,-499.19612893,0.00017808,2]
[367837605,1750941058491,-888.46,0.00017808,2]
[367837606,1750941058500,-791.24,0.00017808,2]
[367837607,1750941058510,-460.0,0.00017808,2]
[367837608,1750941058519,-460.0,0.00017808,2]
[367837609,1750941058529,-460.0,0.00017808,2]
[367837610,1750941058538,-807.51,0.00017808,2]
[367837611,1750941058548,-460.0,0.00017808,2]
[367837612,1750941058557,-460.0,0.00017808,2]
[367837613,1750941058567,-460.0,0.00017808,2]
[367837614,1750941058576,-460.0,0.00017808,2]
[367837615,1750941058586,-503.24,0.00017808,2]
[367837616,1750941058596,-460.0,0.00017808,2]
[367837617,1750941058605,-631.7,0.00017808,2]
[367837618,1750941058615,-460.0,0.00017808,2]
[367837619,1750941058624,-460.0,0.00017808,2]
[367837620,1750941058637,-742.62,0.00017808,2]
[367837621,1750941058647,-460.0,0.00017808,2]
[367837622,1750941058792,-500.0,0.00017808,2]
[367837623,1750941058802,-460.0,0.00017808,2]
[367837624,1750941058812,-460.0,0.00017808,2]
[367837625,1750941058821,-460.0,0.00017808,2]